bitfinex-derivatives/quotes_BNBF0:USTF0_20260110
["timestamp","ask_amount","ask_price","bid_price","bid_amount"]
[1768020317329,2.74803267,907.49,904.98,0.82854755]
[1768020317531,0.19203867,906.26,904.98,0.82854755]
[1768020317727,2.74803267,907.53,904.98,0.82854755]
[1768020318632,0.19203708,906.9,904.98,0.82854755]
[1768020319230,0.19203708,906.9,904.97,0.82854755]
[1768020319428,0.19203708,906.9,904.85,0.82854755]
[1768020319630,0.19203708,906.9,904.98,1.687]
[1768020339157,0.19203708,906.9,905.13,0.82854755]
[1768020339352,0.19203708,906.9,905.14,0.82854755]
[1768020340355,0.19203708,906.9,905.15,0.82854755]
[1768020341158,0.19203708,906.9,905.16,0.82854755]
[1768020341458,0.19203708,906.9,905.15,0.82854755]
[1768020342159,0.19203708,906.9,905.17,0.82854755]
[1768020343168,0.19203708,906.9,905.18,0.82854755]
[1768020344266,0.19203708,906.9,905.19,0.82854755]
[1768020346170,0.19203708,906.9,905.21,0.82854755]
[1768020347273,0.19203708,906.9,905.23,0.82854755]
[1768020348371,0.19203708,906.9,905.25,0.82854755]
[1768020349276,0.19203708,906.9,905.28,0.82854755]
[1768020349477,0.19203708,906.9,905.27,0.82854755]
[1768020350377,0.19203708,906.9,905.28,0.82854755]
[1768020350573,0.19203708,906.9,905.31,0.82854755]
[1768020351376,0.19203708,906.9,905.35,0.82854755]
[1768020352377,0.19203708,906.9,905.39,0.82854755]
[1768020353473,0.19203708,906.9,905.46,0.82854755]
[1768020354474,0.19203708,906.9,905.48,0.82854755]
[1768020355278,0.19203708,906.9,905.49,0.82854755]
[1768020356378,0.19203708,906.9,905.51,0.82854755]
[1768020359280,0.19203708,906.9,905.52,1.548]
[1768020379492,0.19203708,906.9,905.38,5.16473317]
[1768020382200,0.19203708,906.9,905.39,2.015]
[1768020398411,0.19203708,906.9,905.38,5.16473317]
[1768020402508,0.19203708,906.9,905.39,2.396]
[1768020415619,0.19203708,906.9,905.4,0.8266122]
[1768020416416,0.19203708,906.9,905.39,3.2226122]
[1768020418218,0.19203708,906.9,905.39,2.396]
[1768020419618,0.19203708,906.9,905.46,0.8266122]
[1768020422120,0.19203708,906.9,905.45,0.8266122]
[1768020422917,0.19203708,906.9,905.46,2.082]
[1768020423423,0.19203708,906.9,905.48,0.8266122]
[1768020423718,0.19203708,906.9,905.51,0.8266122]
[1768020424221,0.19203708,906.9,905.5,0.8266122]
[1768020425323,0.19203708,906.9,905.53,0.8266122]
[1768020426524,0.19203708,906.9,905.54,0.8266122]
[1768020428927,0.19203708,906.9,905.58,0.8266122]
[1768020429226,0.19203708,906.9,905.57,0.8266122]
[1768020429426,0.19203708,906.9,905.58,0.8266122]
[1768020430227,0.19203708,906.9,905.57,0.8266122]
[1768020430423,0.19203708,906.9,905.58,0.8266122]
[1768020431128,0.19203708,906.9,905.57,0.8266122]
[1768020431326,0.19203708,906.9,905.58,0.8266122]
[1768020432124,0.19203708,906.9,905.57,0.8266122]
[1768020432328,0.19203708,906.9,905.58,0.8266122]
[1768020433224,0.19203708,906.9,905.57,0.8266122]
[1768020433528,0.19203708,906.9,905.58,0.8266122]
[1768020439432,0.19203708,906.9,905.59,0.8266122]
[1768020439737,0.19203708,906.9,905.6,0.8266122]
[1768020439938,0.19203708,906.9,905.61,0.8266122]
[1768020440137,0.19203708,906.9,905.6,0.8266122]
[1768020440338,0.19203708,906.9,905.61,0.8266122]
[1768020440538,0.19203708,906.9,905.7,0.8266122]
[1768020441439,0.19203708,906.9,905.57,0.8266122]
[1768020445241,0.19203708,906.9,905.58,0.8266122]
[1768020448639,0.19203708,906.9,905.55,0.8266122]
[1768020449439,0.19203708,906.9,905.52,0.8266122]
[1768020450138,0.19203708,906.9,905.53,0.8266122]
[1768020452340,0.19203708,906.9,905.54,0.8266122]
[1768020454241,0.19203708,906.9,905.55,0.8266122]
[1768020456346,0.19203708,906.9,905.56,0.8266122]
[1768020458249,0.19203708,906.9,905.57,0.8266122]
[1768020459350,0.19203708,906.9,905.58,0.8266122]
[1768020459552,0.19203708,906.9,905.61,0.8266122]
[1768020460053,0.19203708,906.9,905.62,0.8266122]
[1768020461152,0.19203708,906.9,905.63,0.8266122]
[1768020464253,0.19203708,906.9,905.64,0.8266122]
[1768020465954,0.19203708,906.9,905.52,0.8266122]
[1768020466255,0.19203708,906.9,905.51,0.8266122]
[1768020468360,0.19203708,906.9,905.49,0.8266122]
[1768020469460,0.19203708,906.9,905.48,0.8266122]
[1768020470059,0.19203708,906.9,905.46,2.082]
[1768020470359,2.74803267,906.57,905.46,0.69825031]
[1768020470561,2.74803267,906.57,904.03,1.09069515]
[1768020470761,2.74803267,906.57,904.02,1.09069515]
[1768020471062,2.74803267,906.3,904.02,1.09069515]
[1768020471360,2.74803267,906.38,903.94,1.09069515]
[1768020471567,2.74803267,906.38,903.68,0.01067197]
[1768020471568,2.74803267,906.38,903.91,1.09069515]
[1768020472066,2.74803267,906.36,903.86,1.09069515]
[1768020472569,2.74803267,906.42,903.86,1.09069515]
[1768020473070,2.74803267,906.44,903.94,1.09069515]
[1768020473273,2.74803267,906.44,903.94,5.34450524]
[1768020473474,2.74803267,906.52,903.94,5.34450524]
[1768020474469,2.74803267,906.54,903.95,2.314]
[1768020475670,2.74803267,906.56,903.95,2.314]
[1768020476569,2.74803267,906.58,903.95,2.314]
[1768020477673,2.74803267,906.6,903.95,2.314]
[1768020478275,2.74803267,906.62,903.95,2.314]
[1768020479276,2.74803267,906.63,903.95,2.314]
[1768020479774,2.74803267,906.67,903.95,2.314]
[1768020481278,2.74803267,906.69,903.95,2.314]
[1768020482876,2.74803267,906.7,903.95,2.314]
[1768020483376,2.74803267,906.67,903.95,2.314]
[1768020483877,2.74803267,906.66,903.95,2.314]
[1768020484475,2.74803267,906.67,903.95,2.314]
[1768020485480,2.74803267,906.68,903.95,2.314]
[1768020487486,2.74803267,906.69,903.95,2.314]
[1768020488685,2.74803267,906.7,903.95,2.314]
[1768020489088,2.74803267,906.68,903.95,2.314]
[1768020489583,2.74803267,906.64,903.95,2.314]
[1768020490790,2.74803267,906.65,903.95,2.314]
[1768020493293,2.74803267,906.64,903.95,2.314]
[1768020496792,2.74803267,906.63,903.95,2.314]
[1768020498396,2.74803267,906.62,903.95,2.314]
[1768020499396,2.74803267,906.61,903.95,2.314]
[1768020499997,2.74803267,906.57,903.95,2.314]
[1768020500494,2.74803267,906.52,903.95,2.314]
[1768020501098,2.74803267,906.5,903.95,2.314]
[1768020501494,2.74803267,906.49,903.95,2.314]
[1768020502695,2.74803267,906.48,903.95,2.314]
[1768020503694,2.74803267,906.46,903.95,2.314]
[1768020504199,2.74803267,906.44,903.95,2.314]
[1768020505200,2.74803267,906.42,903.95,2.314]
[1768020506204,2.74803267,906.4,903.95,2.314]
[1768020507304,2.74803267,906.37,903.95,2.314]
[1768020507804,2.74803267,906.36,903.95,2.314]
[1768020508305,2.74803267,906.34,903.95,2.314]
[1768020508804,2.74803267,906.33,903.95,2.314]
[1768020509506,2.74803267,906.21,903.95,2.314]
[1768020509901,2.74803267,906.28,903.95,2.314]
[1768020510403,2.74803267,906.24,903.95,2.314]
[1768020511406,2.74803267,906.2,903.95,2.314]
[1768020512506,2.74803267,906.15,903.95,2.314]
[1768020513303,2.74803267,906.18,903.94,5.34450524]
[1768020514104,2.74803267,906.18,904.03,1.09069515]
[1768020514307,2.74803267,906.07,904.03,1.09069515]
[1768020516509,2.74803267,906.07,904.04,2.205]
[1768020518509,2.74803267,906.06,904.04,2.205]
[1768020518810,0.19225882,905.57,904.04,2.205]
[1768020519408,0.19225882,905.57,904.04,3.29569515]
[1768020523312,0.19225882,905.57,904.05,1.09069515]
[1768020523516,0.19225882,905.57,904.06,1.09069515]
[1768020524113,0.19225882,905.57,904.07,1.09069515]
[1768020525318,0.19225882,905.57,904.1,1.09069515]
[1768020526116,0.19225882,905.57,904.11,1.09069515]
[1768020526315,0.19225882,905.57,904.12,1.09069515]
[1768020529522,0.19225882,905.57,904.17,1.09069515]
[1768020537433,0.19225882,905.57,904.18,1.09069515]
[1768020538934,0.19225882,905.57,904.11,1.09069515]
[1768020539535,0.19225882,905.57,904.07,1.09069515]
[1768020541939,0.19225882,905.57,904.09,1.09069515]
[1768020544136,0.19225882,905.57,904.15,1.09069515]
[1768020544341,0.19225882,905.57,904.16,1.09069515]
[1768020544842,0.19225882,905.57,904.18,1.09069515]
[1768020549640,0.19225882,905.57,904.2,1.09069515]
[1768020551646,0.19225882,905.57,904.22,1.09069515]
[1768020552344,0.19225882,905.57,904.23,1.09069515]
[1768020552644,0.19225882,905.57,904.31,1.09069515]
[1768020552849,0.19225882,905.57,904.32,1.09069515]
[1768020553049,2.74803267,906.3,904.32,1.09069515]
[1768020553345,0.19220095,905.67,904.35,1.09069515]
[1768020553549,2.74803267,906.35,904.35,1.09069515]
[1768020553749,0.1921967,905.67,904.35,1.09069515]
[1768020553947,2.74803267,906.37,904.35,1.09069515]
[1768020554246,0.19219564,905.67,904.35,1.09069515]
[1768020554451,0.19219564,905.67,904.04,2.205]
[1768020554452,0.19219564,905.67,904.34,1.09069515]
[1768020556353,0.19219564,905.67,904.33,1.09069515]
[1768020558356,0.19219564,905.67,904.32,1.09069515]
[1768020559559,0.19219564,905.67,904.28,1.09069515]
[1768020560556,0.19219564,905.67,904.11,1.63604272]
[1768020560557,0.19219564,905.67,904.27,1.09069515]
[1768020563464,0.19219564,905.67,904.26,1.09069515]
[1768020563663,0.19219564,905.67,904.28,2.102]
[1768020566063,2.74803267,906.39,904.28,2.102]
[1768020566363,0.1921845,905.8,904.34,1.09069515]
[1768020567266,0.1921845,905.8,904.33,1.09069515]
[1768020569668,0.1921845,905.8,904.35,1.09069515]
[1768020570469,0.1921845,905.8,904.34,1.09069515]
[1768020574373,0.1921845,905.8,904.45,1.09069515]
[1768020575480,2.74803267,906.67,904.45,1.09069515]
[1768020575876,0.19214842,905.92,904.45,1.09069515]
[1768020576075,2.74803267,906.67,904.45,1.09069515]
[1768020576375,0.19214789,905.92,904.44,1.09069515]
[1768020576579,2.74803267,906.67,904.44,1.09069515]
[1768020576780,0.19214842,905.92,904.44,1.09069515]
[1768020577079,2.74803267,906.67,904.44,1.09069515]
[1768020577276,2.74803267,906.67,904.43,1.09069515]
[1768020577579,2.74803267,906.68,904.43,1.09069515]
[1768020577974,0.19214895,906.12,904.43,1.09069515]
[1768020578977,0.19214895,906.12,904.44,1.09069515]
[1768020579378,0.19214895,906.12,904.43,1.09069515]
[1768020583584,0.19214895,906.12,904.44,1.905]
[1768020585884,0.19214895,906.12,904.44,2.99569515]
[1768020587284,0.19214895,906.12,904.45,1.09069515]
[1768020589487,0.19214895,906.12,904.44,1.905]
[1768020593090,0.19214895,906.12,904.52,1.09069515]
[1768020593592,2.74803267,906.88,904.72,1.09069515]
[1768020593792,0.19211023,906.21,904.76,1.09069515]
[1768020593992,2.74803267,906.96,904.76,1.09069515]
[1768020594186,2.74803267,906.96,904.75,1.09069515]
[1768020594392,0.19208955,906.21,904.74,1.09069515]
[1768020594589,2.74803267,906.97,904.74,1.09069515]
[1768020594788,0.19208584,906.41,904.74,1.09069515]
[1768020594991,0.19208584,906.41,904.84,1.09069515]
[1768020595294,0.19208584,906.41,904.82,1.09069515]
[1768020596390,0.19208584,906.41,904.81,1.09069515]
[1768020597292,0.19208584,906.41,904.8,1.09069515]
[1768020597497,0.19208584,906.41,904.79,1.09069515]
[1768020598393,0.19208584,906.41,904.76,1.09069515]
[1768020598597,0.19208584,906.41,904.69,1.09069515]
[1768020599293,0.19208584,906.41,904.68,1.09069515]
[1768020599499,0.19208584,906.41,904.71,1.09069515]
[1768020601402,0.19208584,906.41,904.7,1.09069515]
[1768020602398,0.19208584,906.41,904.69,1.09069515]
[1768020603401,0.19208584,906.41,904.7,1.09069515]
[1768020603602,0.19208584,906.41,904.71,1.09069515]
[1768020603902,0.19208584,906.41,904.73,1.09069515]
[1768020604398,0.19208584,906.41,904.72,1.09069515]
[1768020605904,0.19208584,906.41,904.73,1.09069515]
[1768020606399,0.19208584,906.41,904.72,1.09069515]
[1768020607803,0.19208584,906.41,904.75,1.09069515]
[1768020608405,0.19208584,906.41,904.76,1.09069515]
[1768020608705,0.19208584,906.41,904.79,1.09069515]
[1768020608901,0.19208584,906.41,904.86,1.09069515]
[1768020609309,0.19208584,906.41,904.95,1.09069515]
[1768020609503,0.19208584,906.41,904.98,1.09069515]
[1768020609904,0.19208584,906.41,905.0,1.09069515]
[1768020610103,2.74803267,907.48,905.0,1.09069515]
[1768020610303,0.19201112,906.57,904.98,1.09069515]
[1768020610507,2.74803267,907.49,904.99,1.09069515]
[1768020610707,2.74803267,907.49,905.02,1.09069515]
[1768020610906,0.19200477,906.6,905.02,1.09069515]
[1768020611104,2.74803267,907.61,905.1,1.09069515]
[1768020611407,0.19198994,906.72,905.09,1.09069515]
[1768020611608,2.74803267,907.65,905.09,1.09069515]
[1768020612005,0.19197988,906.72,905.09,1.09069515]
[1768020612204,2.74803267,907.65,905.09,1.09069515]
[1768020612509,0.19197776,906.72,905.07,1.09069515]
[1768020612709,2.74803267,907.66,905.07,1.09069515]
[1768020613006,0.19197882,906.72,905.07,1.09069515]
[1768020613206,2.74803267,907.66,905.07,1.09069515]
[1768020613509,0.19197882,906.71,905.05,1.09069515]
[1768020613706,2.74803267,907.67,905.05,1.09069515]
[1768020614111,0.19197988,906.71,905.05,1.09069515]
[1768020614407,2.74803267,907.67,905.03,1.09069515]
[1768020614709,0.19197935,906.71,905.05,1.09069515]
[1768020614911,2.74803267,907.7,905.05,1.09069515]
[1768020615206,0.19197405,907.02,905.05,1.09069515]
[1768020615410,0.19197405,907.02,905.02,1.09069515]
[1768020616313,0.19197405,907.02,905.01,1.09069515]
[1768020617413,0.19197405,907.02,904.96,1.09069515]
[1768020617610,0.19197405,907.02,904.94,1.09069515]
[1768020618314,0.19197405,907.02,904.93,1.09069515]
[1768020618910,0.19197405,907.02,904.92,1.09069515]
[1768020619414,0.19197405,907.02,904.91,1.09069515]
[1768020619614,0.19197405,907.02,904.89,1.09069515]
[1768020620816,0.19197405,907.02,904.88,1.09069515]
[1768020622317,0.19197405,907.02,904.89,1.09069515]
[1768020622519,0.19197405,907.02,904.88,1.09069515]
[1768020623320,0.19197405,907.02,904.89,1.09069515]
[1768020626328,0.19197405,907.02,904.9,1.09069515]
[1768020628221,0.19197405,907.02,904.91,1.09069515]
[1768020629520,0.19197405,907.02,904.96,1.09069515]
[1768020630517,0.19197405,907.02,904.97,1.09069515]
[1768020631425,0.19197405,907.02,904.98,1.09069515]
[1768020632427,0.19197405,907.02,904.99,1.09069515]
[1768020633323,0.19197405,907.02,905.01,1.09069515]
[1768020634531,0.19197405,907.02,905.02,1.09069515]
[1768020635327,0.19197405,907.02,905.05,1.09069515]
[1768020636331,0.19197405,907.02,905.07,1.09069515]
[1768020637329,0.19197405,907.02,905.1,1.09069515]
[1768020638431,0.19197405,907.02,905.12,1.09069515]
[1768020639334,0.19197405,907.02,905.13,1.09069515]
[1768020639534,0.19197405,907.02,905.1,1.09069515]
[1768020641336,0.19197405,907.02,905.11,1.09069515]
[1768020642237,0.19197405,907.02,905.15,1.09069515]
[1768020643435,0.19197405,907.02,905.16,1.09069515]
[1768020643737,0.19197405,907.02,905.18,1.09069515]
[1768020644334,0.19197405,907.02,905.19,1.09069515]
[1768020645237,0.19197405,907.02,905.2,1.09069515]
[1768020645641,0.19197405,907.02,905.25,1.09069515]
[1768020646338,0.19197405,907.02,905.27,1.09069515]
[1768020647437,0.19197405,907.02,905.28,1.09069515]
[1768020647638,0.19197405,907.02,905.3,1.09069515]
[1768020648444,0.19197405,907.02,905.32,1.09069515]
[1768020649345,0.19197405,907.02,905.33,1.09069515]
[1768020649645,0.19197405,907.02,905.35,1.09069515]
[1768020650346,0.19197405,907.02,905.36,1.09069515]
[1768020650540,0.19197405,907.02,905.38,1.09069515]
[1768020651447,0.19197405,907.02,905.4,1.09069515]
[1768020652446,0.19197405,907.02,905.42,1.09069515]
[1768020653450,0.19197405,907.02,905.44,1.09069515]
[1768020659550,0.19197405,907.02,905.42,1.09069515]
[1768020660150,0.19197405,907.02,905.53,1.09069515]
[1768020661356,0.19197405,907.02,905.52,1.09069515]
[1768020663250,0.19197405,907.02,905.51,1.09069515]
[1768020664455,0.19197405,907.02,905.5,1.09069515]
[1768020667161,0.19197405,907.02,905.49,1.09069515]
[1768020669562,0.19197405,907.02,905.5,1.09069515]
[1768020670160,0.19197405,907.02,905.43,1.09069515]
[1768020671562,0.19197405,907.02,905.41,1.09069515]
[1768020671761,0.19197405,907.02,905.35,1.09069515]
[1768020672065,0.19197405,907.02,905.34,1.09069515]
[1768020673263,0.19197405,907.02,905.32,1.09069515]
[1768020673561,0.19197405,907.02,905.3,1.09069515]
[1768020674465,0.19197405,907.02,905.29,1.09069515]
[1768020674664,0.19197405,907.02,905.28,1.09069515]
[1768020675160,0.19197405,907.02,905.26,1.09069515]
[1768020678065,0.19197405,907.02,905.25,1.09069515]
[1768020678464,0.19197405,907.02,905.24,1.09069515]
[1768020679972,0.19197405,907.02,905.18,1.09069515]
[1768020680172,0.19197405,907.02,905.16,1.09069515]
[1768020680367,0.19197405,907.02,905.14,1.09069515]
[1768020681273,0.19197405,907.02,905.13,1.09069515]
[1768020683272,0.19197405,907.02,905.12,1.09069515]
[1768020685287,0.19197405,907.02,905.11,1.09069515]
[1768020687376,0.19197405,907.02,905.1,1.09069515]
[1768020689680,0.19197405,907.02,905.12,1.09069515]
[1768020690180,0.19197405,907.02,905.11,1.09069515]
[1768020691182,0.19197405,907.02,905.12,2.046]
[1768020708806,0.19197405,907.02,905.14,1.09069515]
[1768020709004,0.19197405,907.02,905.3,1.09069515]
[1768020709306,0.19197405,907.02,905.31,1.09069515]
[1768020709505,0.19197405,907.02,905.32,1.09069515]
[1768020709702,0.19197405,907.02,905.29,1.09069515]
[1768020710208,0.19197405,907.02,905.3,1.09069515]
[1768020711203,0.19197405,907.02,905.31,1.09069515]
[1768020711706,0.19197405,907.02,905.32,1.09069515]
[1768020712206,0.19197405,907.02,905.33,1.09069515]
[1768020714106,0.19197405,907.02,905.34,1.09069515]
[1768020715107,0.19197405,907.02,905.35,1.09069515]
[1768020719715,0.19197405,907.02,905.34,1.09069515]
[1768020721118,0.19197405,907.02,905.33,1.09069515]
[1768020724221,0.19197405,907.02,905.32,1.09069515]
[1768020725619,0.19197405,907.02,905.41,1.09069515]
[1768020726420,0.19197405,907.02,905.4,1.09069515]
[1768020728518,0.19197405,907.02,905.39,1.09069515]
[1768020729528,0.19197405,907.02,905.38,1.09069515]
[1768020730322,0.19197405,907.02,905.37,1.09069515]
[1768020733921,0.19197405,907.02,905.39,1.09069515]
[1768020736821,0.19197405,907.02,905.41,1.09069515]
[1768020737420,0.19197405,907.02,905.4,1.09069515]
[1768020737821,0.19197405,907.02,905.42,1.09069515]
[1768020738320,2.74803267,907.66,905.5,1.09069515]
[1768020738526,2.74803267,907.99,905.78,1.09069515]
[1768020738823,0.19190101,907.27,905.78,1.09069515]
[1768020739027,2.74803267,908.03,905.78,1.09069515]
[1768020739326,0.1918645,907.44,905.77,1.09069515]
[1768020739824,0.1918645,907.44,905.83,1.09069515]
[1768020740523,0.1918645,907.44,905.8,1.09069515]
[1768020741222,0.1918645,907.44,905.81,1.09069515]
[1768020741427,0.1918645,907.44,905.8,1.09069515]
[1768020741627,0.1918645,907.44,905.82,1.09069515]
[1768020742327,0.1918645,907.44,905.86,1.09069515]
[1768020743229,2.74803267,908.29,905.91,1.09069515]
[1768020743427,2.74803267,908.29,905.89,1.09069515]
[1768020743623,0.19181586,907.54,905.89,1.09069515]
[1768020743823,2.74803267,908.36,905.89,1.09069515]
[1768020744028,0.19181057,907.54,905.89,1.09069515]
[1768020744323,2.74803267,908.36,905.89,1.09069515]
[1768020744528,0.19181057,907.54,905.86,1.09069515]
[1768020744927,2.74803267,908.37,905.86,1.09069515]
[1768020745128,0.19181216,907.54,905.86,1.09069515]
[1768020745327,2.74803267,908.37,905.84,1.09069515]
[1768020745628,2.74803267,908.38,905.84,1.09069515]
[1768020745928,0.1918222,907.74,905.84,1.09069515]
[1768020746428,0.1918222,907.74,905.82,1.09069515]
[1768020747329,0.1918222,907.74,905.8,1.09069515]
[1768020748127,0.1918222,907.74,905.78,1.09069515]
[1768020748530,0.1918222,907.74,905.77,1.09069515]
[1768020749233,0.1918222,907.74,905.78,2.047]
[1768020772357,0.1918222,907.74,905.78,3.13769515]
[1768020773453,0.1918222,907.74,905.79,1.09069515]
[1768020774459,0.1918222,907.74,905.81,1.09069515]
[1768020775258,0.1918222,907.74,905.82,1.09069515]
[1768020776457,0.1918222,907.74,905.84,1.09069515]
[1768020777359,0.1918222,907.74,905.86,1.09069515]
[1768020778353,0.1918222,907.74,905.88,1.09069515]
[1768020779356,0.1918222,907.74,905.9,1.09069515]
[1768020780362,0.1918222,907.74,905.92,1.09069515]
[1768020781358,0.1918222,907.74,905.94,1.09069515]
[1768020781562,0.1918222,907.74,905.78,3.68304272]
[1768020781563,0.1918222,907.74,905.95,1.09069515]
[1768020782463,0.1918222,907.74,905.99,1.09069515]
[1768020783364,0.1918222,907.74,906.02,1.09069515]
[1768020784359,0.1918222,907.74,906.03,1.09069515]
[1768020785370,0.1918222,907.74,906.04,1.09069515]
[1768020788271,0.1918222,907.74,906.05,1.09069515]
[1768020789566,0.1918222,907.74,906.03,1.09069515]
[1768020790971,0.1918222,907.74,906.04,1.09069515]
[1768020791468,0.1918222,907.74,906.05,1.09069515]
[1768020794475,0.1918222,907.74,906.1,1.09069515]
[1768020794675,0.1918222,907.74,906.22,1.09069515]
[1768020795173,0.1918222,907.74,906.23,1.09069515]
[1768020795474,0.1918222,907.74,906.22,1.09069515]
[1768020795772,0.1918222,907.74,906.23,1.09069515]
[1768020796277,0.1918222,907.74,906.22,1.09069515]
[1768020797277,0.1918222,907.74,906.21,1.09069515]
[1768020798977,0.1918222,907.74,906.2,1.09069515]
[1768020799578,0.1918222,907.74,906.21,4.98891705]
[1768020802281,0.1918222,907.74,906.22,1.912]
[1768020806382,0.1918222,907.74,906.31,1.09069515]
[1768020807183,0.1918222,907.74,906.3,1.09069515]
[1768020808284,0.1918222,907.74,906.29,1.09069515]
[1768020808883,0.1918222,907.74,906.27,1.09069515]
[1768020810185,0.1918222,907.74,906.26,1.09069515]
[1768020811180,0.1918222,907.74,906.28,1.09069515]
[1768020813188,0.1918222,907.74,906.27,1.09069515]
[1768020817289,0.1918222,907.74,906.26,1.09069515]
[1768020818693,0.1918222,907.74,906.22,1.912]
[1768020824000,0.1918222,907.74,906.27,1.09069515]
[1768020826803,0.1918222,907.74,906.29,1.09069515]
[1768020829599,0.1918222,907.74,906.22,1.912]
[1768020829600,0.1918222,907.74,906.31,1.09069515]
[1768020831304,0.1918222,907.74,906.32,1.09069515]
[1768020833206,0.1918222,907.74,906.33,1.09069515]
[1768020833612,0.1918222,907.74,906.32,1.09069515]
[1768020834214,0.1918222,907.74,906.33,1.09069515]
[1768020835212,0.1918222,907.74,906.21,4.98891705]
[1768020835213,0.1918222,907.74,906.34,1.09069515]
[1768020836109,0.1918222,907.74,906.24,1.09069515]
[1768020836309,0.1918222,907.74,906.35,1.736]
[1768020860523,0.1918222,907.74,906.39,1.09069515]
[1768020861422,0.1918222,907.74,906.49,1.09069515]
[1768020862228,0.1918222,907.74,906.54,1.09069515]
[1768020862426,0.1918222,907.74,906.53,1.09069515]
[1768020863428,0.1918222,907.74,906.52,1.09069515]
[1768020863628,0.1918222,907.74,906.49,1.09069515]
[1768020864327,0.1918222,907.74,906.48,1.09069515]
[1768020866128,0.1918222,907.74,906.47,1.09069515]
[1768020867330,0.1918222,907.74,906.46,1.09069515]
[1768020869337,0.1918222,907.74,906.45,1.09069515]
[1768020870335,0.1918222,907.74,906.44,1.09069515]
[1768020871334,2.74803267,908.69,906.44,1.09069515]
[1768020871636,0.19173237,907.84,906.44,1.09069515]
[1768020872137,2.74803267,908.69,906.44,1.09069515]
[1768020872336,0.19173237,907.84,906.43,1.09069515]
[1768020872536,2.74803267,908.69,906.43,1.09069515]
[1768020872739,0.1917329,907.84,906.43,1.09069515]
[1768020873239,2.74803267,908.69,906.43,1.09069515]
[1768020873440,0.1917329,907.84,906.43,1.09069515]
[1768020873740,2.74803267,908.7,906.43,1.09069515]
[1768020873940,0.19173237,907.84,906.43,1.09069515]
[1768020874236,2.74803267,908.7,906.43,1.09069515]
[1768020874440,0.19173237,907.84,906.43,1.09069515]
[1768020874634,2.74803267,908.7,906.43,1.09069515]
[1768020874940,0.19173237,907.84,906.43,1.09069515]
[1768020875136,2.74803267,908.7,906.43,1.09069515]
[1768020875338,2.74803267,908.71,906.42,1.09069515]
[1768020875537,0.19173237,907.84,906.42,1.09069515]
[1768020875741,2.74803267,908.71,906.42,1.09069515]
[1768020875939,0.19173237,907.84,906.42,1.09069515]
[1768020876238,2.74803267,908.71,906.42,1.09069515]
[1768020876636,0.19173237,907.84,906.42,1.09069515]
[1768020876838,2.74803267,908.71,906.42,1.09069515]
[1768020877035,0.19173237,907.84,906.42,1.09069515]
[1768020877239,2.74803267,908.71,906.42,1.09069515]
[1768020877542,0.19173237,907.84,906.42,1.09069515]
[1768020877845,2.74803267,908.71,906.42,1.09069515]
[1768020878044,0.19173237,907.84,906.42,1.09069515]
[1768020878345,2.74803267,908.71,906.41,1.09069515]
[1768020878545,0.19173237,907.84,906.41,1.09069515]
[1768020878848,2.74803267,908.71,906.41,1.09069515]
[1768020879249,0.1917329,907.84,906.41,1.09069515]
[1768020879546,2.74803267,908.71,906.41,1.09069515]
[1768020879745,0.1917329,907.84,906.37,1.09069515]
[1768020880048,2.74803267,908.68,906.37,1.09069515]
[1768020880247,0.19173501,907.84,906.37,1.09069515]
[1768020880448,2.74803267,908.68,906.37,1.09069515]
[1768020880949,0.19173659,908.11,906.37,1.09069515]
[1768020881746,0.19173659,908.11,906.38,2.43]
[1768020888350,0.19173659,908.11,906.38,3.52069515]
[1768020889454,0.19173659,908.11,906.39,1.09069515]
[1768020889750,0.19173659,908.11,906.45,1.09069515]
[1768020890455,0.19173659,908.11,906.38,2.43]
[1768020893355,0.19173659,908.11,906.38,3.52069515]
[1768020894361,0.19173659,908.11,906.4,1.09069515]
[1768020896359,0.19173659,908.11,906.41,1.09069515]
[1768020898364,0.19173659,908.11,906.42,1.09069515]
[1768020900366,0.19173659,908.11,906.43,1.09069515]
[1768020902266,0.19173659,908.11,906.61,1.09069515]
[1768020902471,0.19173659,908.11,906.63,1.09069515]
[1768020903270,0.19173659,908.11,906.64,1.09069515]
[1768020904270,0.19173659,908.11,906.63,1.09069515]
[1768020904574,0.19173659,908.11,906.64,1.09069515]
[1768020905376,0.19173659,908.11,906.65,1.09069515]
[1768020906176,0.19173659,908.11,906.71,1.09069515]
[1768020908176,0.19173659,908.11,906.7,1.09069515]
[1768020909380,0.19173659,908.11,906.68,1.09069515]
[1768020909578,0.19173659,908.11,906.63,1.09069515]
[1768020910078,0.19173659,908.11,906.62,1.09069515]
[1768020912176,0.19173659,908.11,906.61,1.09069515]
[1768020915181,0.19173659,908.11,906.6,1.09069515]
[1768020919280,0.19173659,908.11,906.59,1.09069515]
[1768020919577,0.19173659,908.11,906.63,1.09069515]
[1768020920880,0.19173659,908.11,906.63,5.90840421]
[1768020922783,0.19173659,908.11,906.64,1.09069515]
[1768020923481,0.19173659,908.11,906.65,2.349]
[1768020926286,0.19173659,908.11,906.67,1.09069515]
[1768020929691,0.19173659,908.11,906.68,1.09069515]